[Event "GrandPrix_30.05"]
[Site "Chess.com"]
[Date "2020.05.30"]
[Round "1"]
[White "Durarbayli"]
[Black "BlackBoarder"]
[Result "1-0"]
[WhiteElo "2549"]
[BlackElo "2159"]
[TimeControl "600+2"]
[EndTime "8:25:35 PDT"]
[Termination "Durarbayli won by resignation"]

1. e4 {[%clk 0:10:01.9]} 1... e6 {[%clk 0:09:51.9]} 2. d4 {[%clk 0:10:02.3]}
2... d5 {[%clk 0:09:51.6]} 3. e5 {[%clk 0:10:03.5]} 3... c5 {[%clk 0:09:43.1]}
4. c3 {[%clk 0:10:04.6]} 4... Nc6 {[%clk 0:09:41.7]} 5. Nf3 {[%clk 0:10:05.5]}
5... Bd7 {[%clk 0:09:42.4]} 6. Be2 {[%clk 0:10:00.9]} 6... f6 {[%clk 0:09:41.1]}
7. O-O {[%clk 0:09:53.3]} 7... fxe5 {[%clk 0:09:40.5]} 8. dxe5 {[%clk
0:09:37.8]} 8... Nh6 {[%clk 0:07:56.8]} 9. Bxh6 {[%clk 0:06:31.2]} 9... gxh6
{[%clk 0:07:56.5]} 10. c4 {[%clk 0:06:32.6]} 10... d4 {[%clk 0:07:44.5]} 11. Re1
{[%clk 0:06:18.5]} 11... Qc7 {[%clk 0:07:14]} 12. Nbd2 {[%clk 0:06:07.1]} 12...
O-O-O {[%clk 0:07:04.1]} 13. Bd3 {[%clk 0:05:36.6]} 13... Bg7 {[%clk 0:06:39]}
14. Qe2 {[%clk 0:05:36.2]} 14... Be8 {[%clk 0:05:59.1]} 15. Be4 {[%clk 0:04:25]}
15... Bg6 {[%clk 0:05:27.8]} 16. a3 {[%clk 0:04:03.7]} 16... a6 {[%clk
0:04:00.1]} 17. Bxg6 {[%clk 0:02:44.5]} 17... hxg6 {[%clk 0:03:59.9]} 18. Rab1
{[%clk 0:02:46.1]} 18... a5 {[%clk 0:02:20.5]} 19. Qd3 {[%clk 0:02:19.4]} 19...
g5 {[%clk 0:01:41.6]} 20. h3 {[%clk 0:01:54.8]} 20... Kb8 {[%clk 0:01:31.1]} 21.
Re4 {[%clk 0:01:43.4]} 21... Rhf8 {[%clk 0:01:22.5]} 22. Rbe1 {[%clk 0:01:39.8]}
22... Rf5 {[%clk 0:01:20]} 23. Nf1 {[%clk 0:01:22.9]} 23... Bh8 {[%clk
0:01:06.9]} 24. N1h2 {[%clk 0:01:03.4]} 24... Rdf8 {[%clk 0:00:48.8]} 25. R1e2
{[%clk 0:01:01.4]} 25... h5 {[%clk 0:00:29.7]} 26. g4 {[%clk 0:01:01.5]} 26...
hxg4 {[%clk 0:00:28]} 27. hxg4 {[%clk 0:01:03.4]} 27... Rf4 {[%clk 0:00:24.2]}
28. Kg2 {[%clk 0:01:00.8]} 28... Rxe4 {[%clk 0:00:18.7]} 29. Qxe4 {[%clk
0:00:57.2]} 29... Qg7 {[%clk 0:00:18.8]} 30. Qd3 {[%clk 0:00:43.8]} 30... Rf4
{[%clk 0:00:18.3]} 31. Qd2 {[%clk 0:00:39.7]} 31... Qh6 {[%clk 0:00:17.7]} 32.
Qd3 {[%clk 0:00:31.6]} 32... Qg7 {[%clk 0:00:17.7]} 33. Qb1 {[%clk 0:00:31.1]}
33... Kc7 {[%clk 0:00:16.8]} 34. b3 {[%clk 0:00:21.2]} 34... b6 {[%clk
0:00:15.1]} 35. Qd3 {[%clk 0:00:21.2]} 35... Qh6 {[%clk 0:00:15.5]} 36. Re1
{[%clk 0:00:21.4]} 36... Bg7 {[%clk 0:00:14.6]} 37. Qb1 {[%clk 0:00:14.8]} 37...
Bf8 {[%clk 0:00:13.6]} 38. Re4 {[%clk 0:00:15.6]} 38... Qg6 {[%clk 0:00:11.8]}
39. Re1 {[%clk 0:00:16.5]} 39... Qg7 {[%clk 0:00:06]} 40. Qc2 {[%clk 0:00:13.6]}
40... Be7 {[%clk 0:00:07.1]} 41. Qe2 {[%clk 0:00:14.3]} 41... Qf7 {[%clk
0:00:07.2]} 42. Ng1 {[%clk 0:00:08.8]} 42... Bf8 {[%clk 0:00:06.1]} 43. Nh3
{[%clk 0:00:09.3]} 43... d3 {[%clk 0:00:04.1]} 44. Qxd3 {[%clk 0:00:08.3]} 44...
Rd4 {[%clk 0:00:05.4]} 45. Qf3 {[%clk 0:00:09.7]} 45... Qe7 {[%clk 0:00:04.2]}
46. Nxg5 {[%clk 0:00:07.6]} 46... Bg7 {[%clk 0:00:04.2]} 47. Qf7 {[%clk
0:00:06.5]} 47... Qxf7 {[%clk 0:00:03.1]} 48. Nxf7 {[%clk 0:00:08.4]} 48... Rd7
{[%clk 0:00:04.3]} 49. Ng5 {[%clk 0:00:07.9]} 49... Nd4 {[%clk 0:00:03.2]} 50.
Nhf3 {[%clk 0:00:08.3]} 50... Nxb3 {[%clk 0:00:02.1]} 51. Nxe6+ {[%clk
0:00:08.9]} 51... Kc6 {[%clk 0:00:02.7]} 52. Nxg7 {[%clk 0:00:09.5]} 52... Rxg7
{[%clk 0:00:04.6]} 53. e6 {[%clk 0:00:11.4]} 53... Re7 {[%clk 0:00:05.7]} 54.
Nh4 {[%clk 0:00:11]} 54... Nd4 {[%clk 0:00:06.2]} 55. Nf5 {[%clk 0:00:11.2]}
55... Re8 {[%clk 0:00:03.8]} 56. e7 {[%clk 0:00:10.6]} 56... Kd7 {[%clk
0:00:03.1]} 57. Nxd4 {[%clk 0:00:09.6]} 57... cxd4 {[%clk 0:00:04.6]} 58. Rd1
{[%clk 0:00:11.5]} 58... Rxe7 {[%clk 0:00:05.9]} 59. Rxd4+ {[%clk 0:00:13.1]}
59... Kc6 {[%clk 0:00:07.8]} 60. g5 {[%clk 0:00:14.3]} 60... Kc5 {[%clk
0:00:09.2]} 61. Rg4 {[%clk 0:00:15.7]} 61... Rg7 {[%clk 0:00:08.6]} 62. g6
{[%clk 0:00:17]} 62... Kd6 {[%clk 0:00:09.2]} 63. Kg3 {[%clk 0:00:14.6]} 63...
Ke5 {[%clk 0:00:10]} 64. f4+ {[%clk 0:00:14.1]} 64... Kd4 {[%clk 0:00:10.3]} 65.
f5+ {[%clk 0:00:12.6]} 65... Ke5 {[%clk 0:00:11.3]} 66. Rg5 {[%clk 0:00:13.2]}
66... a4 {[%clk 0:00:08.3]} 67. Kg4 {[%clk 0:00:13.8]} 67... Kf6 {[%clk
0:00:02.9]} 68. Kh5 {[%clk 0:00:14.6]} 68... Rg8 {[%clk 0:00:03.2]} 69. g7
{[%clk 0:00:15.8]} 69... Kf7 {[%clk 0:00:02.9]} 70. Kh6 {[%clk 0:00:15.6]} 70...
Kf6 {[%clk 0:00:04.2]} 71. Rg1 {[%clk 0:00:10]} 71... Kxf5 {[%clk 0:00:04.2]}
72. Kh7 {[%clk 0:00:11.1]} 72... Rxg7+ {[%clk 0:00:03.8]} 73. Rxg7 {[%clk
0:00:13]} 73... Ke4 {[%clk 0:00:04.8]} 74. Ra7 {[%clk 0:00:13.8]} 74... b5
{[%clk 0:00:04.5]} 75. cxb5 {[%clk 0:00:15.7]} 1-0

[Event "GrandPrix_30.05"]
[Site "Chess.com"]
[Date "2020.05.30"]
[Round "1"]
[White "guylevin1"]
[Black "Magicmaster17"]
[Result "1/2-1/2"]
[WhiteElo "2125"]
[BlackElo "2419"]
[TimeControl "600+2"]
[EndTime "8:25:53 PDT"]
[Termination "Game drawn by repetition"]

1. c4 {[%clk 0:09:59.6]} 1... g6 {[%clk 0:09:44]} 2. Nf3 {[%clk 0:09:57.8]} 2...
Bg7 {[%clk 0:09:41.3]} 3. g3 {[%clk 0:09:58]} 3... c6 {[%clk 0:09:28.1]} 4. Bg2
{[%clk 0:09:43.7]} 4... d5 {[%clk 0:09:28.9]} 5. cxd5 {[%clk 0:09:43]} 5... cxd5
{[%clk 0:09:29.6]} 6. d4 {[%clk 0:09:44.1]} 6... Nf6 {[%clk 0:09:29.8]} 7. Nc3
{[%clk 0:09:45]} 7... O-O {[%clk 0:09:22.2]} 8. Ne5 {[%clk 0:09:44]} 8... b6
{[%clk 0:09:23.1]} 9. O-O {[%clk 0:09:44.2]} 9... Bb7 {[%clk 0:09:24]} 10. Bf4
{[%clk 0:09:22.4]} 10... Nc6 {[%clk 0:08:07.4]} 11. Nxc6 {[%clk 0:08:32.6]}
11... Bxc6 {[%clk 0:08:09.3]} 12. Be5 {[%clk 0:08:34.2]} 12... Qd7 {[%clk
0:08:05.4]} 13. Qd2 {[%clk 0:08:14.3]} 13... Rfc8 {[%clk 0:07:42.1]} 14. Rac1
{[%clk 0:08:01.5]} 14... e6 {[%clk 0:07:43.1]} 15. Rc2 {[%clk 0:07:47.3]} 15...
b5 {[%clk 0:07:31.4]} 16. a3 {[%clk 0:07:09.5]} 16... a5 {[%clk 0:07:32.1]} 17.
Na2 {[%clk 0:06:36.4]} 17... Ne8 {[%clk 0:06:55.7]} 18. Bxg7 {[%clk 0:06:30.7]}
18... Kxg7 {[%clk 0:06:57.2]} 19. Rfc1 {[%clk 0:06:30]} 19... Nd6 {[%clk
0:06:57.6]} 20. b3 {[%clk 0:06:17.1]} 20... a4 {[%clk 0:06:58.7]} 21. bxa4
{[%clk 0:06:12.7]} 21... Nc4 {[%clk 0:06:56.8]} 22. Qf4 {[%clk 0:05:02.6]} 22...
Rxa4 {[%clk 0:06:56.9]} 23. Nb4 {[%clk 0:04:49.4]} 23... Rxa3 {[%clk 0:06:42.3]}
24. Nd3 {[%clk 0:04:32.4]} 24... Qe7 {[%clk 0:06:04.1]} 25. h4 {[%clk
0:04:08.2]} 25... Qf6 {[%clk 0:05:53.5]} 26. Qg4 {[%clk 0:03:52]} 26... h5
{[%clk 0:05:49.4]} 27. Qg5 {[%clk 0:03:48.2]} 27... Rca8 {[%clk 0:04:28.2]} 28.
Ne5 {[%clk 0:03:31.8]} 28... Qxg5 {[%clk 0:04:05.4]} 29. hxg5 {[%clk 0:03:33.7]}
29... Nxe5 {[%clk 0:03:33]} 30. dxe5 {[%clk 0:03:35.6]} 30... Be8 {[%clk
0:03:34.4]} 31. Rb2 {[%clk 0:02:48.3]} 31... Ra1 {[%clk 0:02:59.7]} 32. Rxa1
{[%clk 0:02:48.8]} 32... Rxa1+ {[%clk 0:03:01.6]} 33. Bf1 {[%clk 0:02:50.3]}
33... d4 {[%clk 0:01:59.5]} 34. Rb4 {[%clk 0:02:39.3]} 34... Ra4 {[%clk
0:01:54.3]} 35. Rb3 {[%clk 0:02:32.2]} 35... Bc6 {[%clk 0:01:51.5]} 36. f4
{[%clk 0:02:30.5]} 36... b4 {[%clk 0:01:42.9]} 37. Rd3 {[%clk 0:01:50.1]} 37...
Ra3 {[%clk 0:01:11.4]} 38. Rxd4 {[%clk 0:01:29.1]} 38... Rxg3+ {[%clk
0:01:12.4]} 39. Kf2 {[%clk 0:01:29.3]} 39... Rb3 {[%clk 0:01:13.7]} 40. Rd6
{[%clk 0:01:28.9]} 40... Bd5 {[%clk 0:01:12]} 41. Bg2 {[%clk 0:01:28.3]} 41...
Bxg2 {[%clk 0:01:06.8]} 42. Kxg2 {[%clk 0:01:30.2]} 42... Rc3 {[%clk 0:01:08.2]}
43. Rb6 {[%clk 0:01:27.4]} 43... b3 {[%clk 0:01:08]} 44. Kf2 {[%clk 0:01:27]}
44... Kf8 {[%clk 0:01:04.8]} 45. Rb7 {[%clk 0:01:27.9]} 45... h4 {[%clk
0:01:04.6]} 46. Kg2 {[%clk 0:01:15.3]} 46... Kg7 {[%clk 0:01:02.9]} 47. Rb4
{[%clk 0:00:58.7]} 47... Re3 {[%clk 0:01:01.4]} 48. Kf2 {[%clk 0:00:44.4]} 48...
h3 {[%clk 0:00:58.6]} 49. Kxe3 {[%clk 0:00:41]} 49... h2 {[%clk 0:00:59.4]} 50.
Rxb3 {[%clk 0:00:41.2]} 50... h1=Q {[%clk 0:01:00.4]} 51. Rb4 {[%clk 0:00:28.4]}
51... Qg1+ {[%clk 0:00:55.8]} 52. Kd2 {[%clk 0:00:28.7]} 52... Qc5 {[%clk
0:00:51.4]} 53. Re4 {[%clk 0:00:18.7]} 53... Qf2 {[%clk 0:00:40.3]} 54. Kd3
{[%clk 0:00:17.4]} 54... Qf1 {[%clk 0:00:20.7]} 55. Kd2 {[%clk 0:00:13.5]} 55...
Qb1 {[%clk 0:00:14.7]} 56. Rd4 {[%clk 0:00:09.3]} 56... Qb2+ {[%clk 0:00:13.7]}
57. Ke3 {[%clk 0:00:10.3]} 57... Qc1+ {[%clk 0:00:14.4]} 58. Kf2 {[%clk
0:00:09.2]} 58... f6 {[%clk 0:00:10.1]} 59. exf6+ {[%clk 0:00:09.1]} 59... Kf7
{[%clk 0:00:10.8]} 60. e3 {[%clk 0:00:10]} 60... e5 {[%clk 0:00:11.3]} 61. Rd7+
{[%clk 0:00:10.1]} 61... Ke6 {[%clk 0:00:11.4]} 62. Re7+ {[%clk 0:00:11]} 62...
Kf5 {[%clk 0:00:12.8]} 63. f7 {[%clk 0:00:08.5]} 63... Qd2+ {[%clk 0:00:13.7]}
64. Kf1 {[%clk 0:00:09.2]} 64... Qd1+ {[%clk 0:00:12.9]} 65. Kf2 {[%clk
0:00:10.2]} 65... Qd2+ {[%clk 0:00:14.4]} 66. Kf1 {[%clk 0:00:11.5]} 66... Qd3+
{[%clk 0:00:13.7]} 67. Kf2 {[%clk 0:00:12.7]} 67... Qc2+ {[%clk 0:00:14.7]} 68.
Kf1 {[%clk 0:00:12.8]} 68... Qb1+ {[%clk 0:00:14.7]} 69. Kf2 {[%clk 0:00:13]}
69... Qa2+ {[%clk 0:00:15.9]} 70. Kf1 {[%clk 0:00:14.1]} 70... Kg4 {[%clk
0:00:16.4]} 71. f8=Q {[%clk 0:00:10.9]} 71... Qb1+ {[%clk 0:00:14.8]} 72. Ke2
{[%clk 0:00:07.4]} 72... Qc2+ {[%clk 0:00:16]} 73. Ke1 {[%clk 0:00:08.5]} 73...
Qc1+ {[%clk 0:00:17.2]} 74. Ke2 {[%clk 0:00:09.7]} 74... Qc2+ {[%clk 0:00:18.3]}
75. Ke1 {[%clk 0:00:11]} 75... Kf3 {[%clk 0:00:17.1]} 76. fxe5+ {[%clk
0:00:11.6]} 76... Kxe3 {[%clk 0:00:18.3]} 77. Kf1 {[%clk 0:00:07.1]} 77... Qd1+
{[%clk 0:00:14.3]} 78. Kg2 {[%clk 0:00:07.8]} 78... Qg4+ {[%clk 0:00:15.4]} 79.
Kh2 {[%clk 0:00:08.9]} 79... Qh4+ {[%clk 0:00:16]} 80. Kg2 {[%clk 0:00:10.2]}
80... Qg4+ {[%clk 0:00:17.1]} 81. Kh2 {[%clk 0:00:10.3]} 81... Qh4+ {[%clk
0:00:18.4]} 82. Kg2 {[%clk 0:00:11.3]} 82... Qg4+ {[%clk 0:00:19.4]} 1/2-1/2

[Event "GrandPrix_30.05"]
[Site "Chess.com"]
[Date "2020.05.30"]
[Round "1"]
[White "Margency"]
[Black "SamadovRead"]
[Result "1/2-1/2"]
[WhiteElo "2232"]
[BlackElo "1973"]
[TimeControl "600+2"]
[EndTime "8:26:08 PDT"]
[Termination "Game drawn by stalemate"]

1. e4 {[%clk 0:08:53.7]} 1... c5 {[%clk 0:10:00]} 2. Nf3 {[%clk 0:08:54]} 2...
d6 {[%clk 0:10:00.8]} 3. d4 {[%clk 0:08:54.3]} 3... cxd4 {[%clk 0:10:01.6]} 4.
Nxd4 {[%clk 0:08:55.7]} 4... Nf6 {[%clk 0:10:02.6]} 5. Nc3 {[%clk 0:08:56.8]}
5... e6 {[%clk 0:09:59.8]} 6. g4 {[%clk 0:08:57]} 6... h6 {[%clk 0:09:59.6]} 7.
h4 {[%clk 0:08:57.4]} 7... Nc6 {[%clk 0:09:59]} 8. Rg1 {[%clk 0:08:58]} 8... h5
{[%clk 0:09:58.7]} 9. gxh5 {[%clk 0:08:59]} 9... Nxh5 {[%clk 0:09:58.7]} 10. Bg5
{[%clk 0:08:54.8]} 10... Nf6 {[%clk 0:09:59.1]} 11. Be2 {[%clk 0:08:54.2]} 11...
Qb6 {[%clk 0:09:51.4]} 12. Nb3 {[%clk 0:08:54.8]} 12... a6 {[%clk 0:09:49]} 13.
Qd2 {[%clk 0:08:55.5]} 13... Bd7 {[%clk 0:09:47.3]} 14. Rg2 {[%clk 0:08:55.6]}
14... Be7 {[%clk 0:09:11.6]} 15. O-O-O {[%clk 0:08:54.9]} 15... O-O-O {[%clk
0:09:02.4]} 16. Be3 {[%clk 0:08:38.6]} 16... Qc7 {[%clk 0:08:04.4]} 17. Rxg7
{[%clk 0:08:36.4]} 17... Rxh4 {[%clk 0:07:02.6]} 18. Rxf7 {[%clk 0:08:01.3]}
18... Be8 {[%clk 0:05:55.6]} 19. Rg7 {[%clk 0:07:15.7]} 19... Nxe4 {[%clk
0:05:33.8]} 20. Nxe4 {[%clk 0:07:14.2]} 20... Rxe4 {[%clk 0:05:35.7]} 21. Kb1
{[%clk 0:07:02.6]} 21... Rd7 {[%clk 0:04:37.1]} 22. Rh1 {[%clk 0:06:29.1]} 22...
Rh4 {[%clk 0:04:17.6]} 23. Rhg1 {[%clk 0:05:57.3]} 23... Rh8 {[%clk 0:04:05.1]}
24. a4 {[%clk 0:05:32]} 24... Bf6 {[%clk 0:03:52.9]} 25. R7g3 {[%clk 0:05:30.6]}
25... Ne5 {[%clk 0:03:16.8]} 26. Bd4 {[%clk 0:05:23.7]} 26... Rf7 {[%clk
0:02:53.5]} 27. a5 {[%clk 0:04:48.6]} 27... Nc6 {[%clk 0:02:42]} 28. Bb6 {[%clk
0:04:44.9]} 28... Qe7 {[%clk 0:02:38.3]} 29. f4 {[%clk 0:04:16]} 29... Rg7
{[%clk 0:02:14.9]} 30. Rxg7 {[%clk 0:03:31.6]} 30... Bxg7 {[%clk 0:02:16.5]} 31.
Bg4 {[%clk 0:03:28.4]} 31... Bd7 {[%clk 0:02:02.4]} 32. c3 {[%clk 0:03:15.7]}
32... Bh6 {[%clk 0:01:39.2]} 33. Be3 {[%clk 0:02:56.7]} 33... Rg8 {[%clk
0:01:32.5]} 34. Rg2 {[%clk 0:02:51.4]} 34... Rf8 {[%clk 0:00:38.3]} 35. Ka2
{[%clk 0:02:46.9]} 35... Kb8 {[%clk 0:00:36.5]} 36. Rh2 {[%clk 0:02:41.1]} 36...
Bg7 {[%clk 0:00:32.1]} 37. Bb6 {[%clk 0:02:25]} 37... Bc8 {[%clk 0:00:29.7]} 38.
Rh7 {[%clk 0:02:16.9]} 38... Rh8 {[%clk 0:00:28.1]} 39. Rxg7 {[%clk 0:02:01]}
39... Qxg7 {[%clk 0:00:28.6]} 40. Qxd6+ {[%clk 0:02:02.3]} 40... Ka8 {[%clk
0:00:30.3]} 41. Bxe6 {[%clk 0:01:49.1]} 41... Bxe6 {[%clk 0:00:29.6]} 42. Qxe6
{[%clk 0:01:50.3]} 42... Qg8 {[%clk 0:00:31.1]} 43. Nc5 {[%clk 0:01:41.8]} 43...
Qxe6+ {[%clk 0:00:28.2]} 44. Nxe6 {[%clk 0:01:42.7]} 44... Rh5 {[%clk
0:00:29.3]} 45. b4 {[%clk 0:01:37.8]} 45... Kb8 {[%clk 0:00:29.3]} 46. Kb3
{[%clk 0:01:37.7]} 46... Kc8 {[%clk 0:00:30.5]} 47. Kc4 {[%clk 0:01:21.5]} 47...
Ne7 {[%clk 0:00:30.9]} 48. Bd4 {[%clk 0:01:15.4]} 48... Kd7 {[%clk 0:00:29.2]}
49. Ng7 {[%clk 0:01:11]} 49... Rh7 {[%clk 0:00:25.8]} 50. f5 {[%clk 0:01:09.5]}
50... Nc6 {[%clk 0:00:26.4]} 51. Ne6 {[%clk 0:01:00.9]} 51... Rf7 {[%clk
0:00:23.2]} 52. Nc5+ {[%clk 0:00:59.2]} 52... Kc8 {[%clk 0:00:23.7]} 53. Ne4
{[%clk 0:00:58.4]} 53... Kd7 {[%clk 0:00:22.7]} 54. f6 {[%clk 0:00:52]} 54...
Rf8 {[%clk 0:00:22.1]} 55. Bc5 {[%clk 0:00:46.5]} 55... Rf7 {[%clk 0:00:21.4]}
56. Kd5 {[%clk 0:00:45.1]} 56... Rh7 {[%clk 0:00:22.3]} 57. Ng5 {[%clk
0:00:39.6]} 57... Rh5 {[%clk 0:00:07.7]} 58. Be3 {[%clk 0:00:37.8]} 58... Nd8
{[%clk 0:00:07.4]} 59. Ke5 {[%clk 0:00:26.2]} 59... Nf7+ {[%clk 0:00:08]} 60.
Kf5 {[%clk 0:00:27.6]} 60... Nd6+ {[%clk 0:00:07.2]} 61. Kg6 {[%clk 0:00:27.5]}
61... Rh1 {[%clk 0:00:08.3]} 62. Bc5 {[%clk 0:00:25.5]} 62... Rf1 {[%clk
0:00:05]} 63. f7 {[%clk 0:00:16.4]} 63... Nxf7 {[%clk 0:00:05.8]} 64. Nxf7
{[%clk 0:00:17.2]} 64... Kc7 {[%clk 0:00:03.1]} 65. Ne5 {[%clk 0:00:17]} 65...
Re1 {[%clk 0:00:02.8]} 66. Bd4 {[%clk 0:00:17.5]} 66... Re2 {[%clk 0:00:03.8]}
67. Kf5 {[%clk 0:00:18.6]} 67... Kd6 {[%clk 0:00:05]} 68. c4 {[%clk 0:00:12.5]}
68... Re1 {[%clk 0:00:05.2]} 69. Bc5+ {[%clk 0:00:12.2]} 69... Kc7 {[%clk
0:00:06.6]} 70. Ke6 {[%clk 0:00:12.2]} 70... Re4 {[%clk 0:00:06.9]} 71. Kd5
{[%clk 0:00:12.9]} 71... Rh4 {[%clk 0:00:07.8]} 72. b5 {[%clk 0:00:13.7]} 72...
axb5 {[%clk 0:00:08.9]} 73. cxb5 {[%clk 0:00:14.8]} 73... Ra4 {[%clk 0:00:09.8]}
74. Bb6+ {[%clk 0:00:12.5]} 74... Kc8 {[%clk 0:00:11.2]} 75. Nc4 {[%clk
0:00:13.6]} 75... Rb4 {[%clk 0:00:11.7]} 76. Kc5 {[%clk 0:00:12.7]} 76... Rb1
{[%clk 0:00:10.6]} 77. Nd6+ {[%clk 0:00:13.6]} 77... Kb8 {[%clk 0:00:12.1]} 78.
Bd8 {[%clk 0:00:14.3]} 78... Rc1+ {[%clk 0:00:12.7]} 79. Kb6 {[%clk 0:00:14.7]}
79... Rd1 {[%clk 0:00:13.1]} 80. Bc7+ {[%clk 0:00:12.7]} 80... Ka8 {[%clk
0:00:14.2]} 81. a6 {[%clk 0:00:07]} 81... bxa6 {[%clk 0:00:14.5]} 82. Kxa6
{[%clk 0:00:04.8]} 82... Rxd6+ {[%clk 0:00:15]} 83. Bxd6 {[%clk 0:00:06.3]}
1/2-1/2

[Event "GrandPrix_30.05"]
[Site "Chess.com"]
[Date "2020.05.30"]
[Round "1"]
[White "OK97"]
[Black "Yurovskykh_Alexander"]
[Result "0-1"]
[WhiteElo "2407"]
[BlackElo "2237"]
[TimeControl "600+2"]
[EndTime "8:26:39 PDT"]
[Termination "Yurovskykh_Alexander won by resignation"]

1. e4 {[%clk 0:10:01.1]} 1... d5 {[%clk 0:09:56.1]} 2. exd5 {[%clk 0:10:01.2]}
2... Qxd5 {[%clk 0:09:56.9]} 3. Nc3 {[%clk 0:10:00.5]} 3... Qd8 {[%clk
0:09:55.9]} 4. d4 {[%clk 0:09:57.9]} 4... Nf6 {[%clk 0:09:47.6]} 5. Nf3 {[%clk
0:09:37.5]} 5... Bg4 {[%clk 0:09:46.4]} 6. h3 {[%clk 0:09:27.3]} 6... Bxf3
{[%clk 0:09:47]} 7. Qxf3 {[%clk 0:09:29.2]} 7... c6 {[%clk 0:09:48.4]} 8. Be3
{[%clk 0:09:16.2]} 8... e6 {[%clk 0:09:45]} 9. O-O-O {[%clk 0:09:06.9]} 9... Bb4
{[%clk 0:09:41]} 10. Ne4 {[%clk 0:08:01.2]} 10... Nxe4 {[%clk 0:09:41.2]} 11.
Qxe4 {[%clk 0:08:03.1]} 11... Qd5 {[%clk 0:09:42.3]} 12. Qxd5 {[%clk 0:08:03.6]}
12... cxd5 {[%clk 0:09:43.8]} 13. c3 {[%clk 0:08:00.8]} 13... Bd6 {[%clk
0:09:44.1]} 14. c4 {[%clk 0:07:33.4]} 14... dxc4 {[%clk 0:09:43.2]} 15. Bxc4
{[%clk 0:07:14.7]} 15... Nd7 {[%clk 0:09:43.7]} 16. Kb1 {[%clk 0:07:00.4]} 16...
O-O {[%clk 0:09:34.8]} 17. d5 {[%clk 0:06:50]} 17... e5 {[%clk 0:09:34.4]} 18.
g4 {[%clk 0:06:24.4]} 18... a6 {[%clk 0:09:29.1]} 19. Rc1 {[%clk 0:06:11.8]}
19... Rac8 {[%clk 0:09:27.2]} 20. Rhe1 {[%clk 0:05:49.8]} 20... f6 {[%clk
0:09:22.2]} 21. h4 {[%clk 0:05:36]} 21... Rc7 {[%clk 0:09:22.8]} 22. Bd3 {[%clk
0:05:31.6]} 22... Rfc8 {[%clk 0:09:19.2]} 23. Bf5 {[%clk 0:05:16.8]} 23... Rxc1+
{[%clk 0:09:19.3]} 24. Bxc1 {[%clk 0:05:17.9]} 24... Rc7 {[%clk 0:09:05]} 25. g5
{[%clk 0:05:11.5]} 25... g6 {[%clk 0:08:45.6]} 26. Be6+ {[%clk 0:04:46.6]} 26...
Kg7 {[%clk 0:08:45]} 27. Bd2 {[%clk 0:03:55.6]} 27... Nc5 {[%clk 0:08:04.2]} 28.
Bh3 {[%clk 0:01:49.6]} 28... f5 {[%clk 0:07:54.6]} 29. Bc3 {[%clk 0:01:09.7]}
29... Re7 {[%clk 0:07:55]} 30. f3 {[%clk 0:00:53.7]} 30... Nd3 {[%clk
0:05:26.7]} 31. Rg1 {[%clk 0:00:23.5]} 31... Nf4 {[%clk 0:05:10.9]} 32. Bf1
{[%clk 0:00:24.5]} 32... Bc5 {[%clk 0:05:02.5]} 33. Rh1 {[%clk 0:00:22.3]} 33...
Nxd5 {[%clk 0:05:02.6]} 34. Bd2 {[%clk 0:00:22.3]} 34... Be3 {[%clk 0:04:54.4]}
35. Ba5 {[%clk 0:00:03.7]} 35... Bb6 {[%clk 0:03:39.1]} 36. Bd2 {[%clk
0:00:04.3]} 36... Rc7 {[%clk 0:03:13.6]} 37. Bd3 {[%clk 0:00:05]} 37... Be3
{[%clk 0:03:05.3]} 38. Ba5 {[%clk 0:00:05.4]} 38... Rc5 {[%clk 0:03:04.5]} 39.
b4 {[%clk 0:00:05.3]} 39... Rc3 {[%clk 0:02:58.4]} 40. Rd1 {[%clk 0:00:06]}
40... Bd4 {[%clk 0:02:32.3]} 41. b5 {[%clk 0:00:06.9]} 41... Rc5 {[%clk
0:02:31.3]} 42. a4 {[%clk 0:00:06.4]} 42... b6 {[%clk 0:02:20.9]} 43. Be1 {[%clk
0:00:07]} 43... a5 {[%clk 0:02:09]} 44. h5 {[%clk 0:00:05.2]} 44... Nf4 {[%clk
0:01:38.1]} 45. h6+ {[%clk 0:00:06]} 45... Kf8 {[%clk 0:01:32.5]} 46. Bc2 {[%clk
0:00:07.4]} 46... Ne6 {[%clk 0:01:11.2]} 47. Bd2 {[%clk 0:00:08.1]} 47... f4
{[%clk 0:01:04.4]} 48. Bc1 {[%clk 0:00:09.5]} 48... Rc7 {[%clk 0:00:33.6]} 49.
Ba3+ {[%clk 0:00:06.3]} 49... Nc5 {[%clk 0:00:34]} 50. Be4 {[%clk 0:00:05.2]}
50... Ke7 {[%clk 0:00:21.6]} 51. Bc6 {[%clk 0:00:06.2]} 51... Rc8 {[%clk
0:00:22.2]} 52. Kc2 {[%clk 0:00:05.8]} 52... Ke6 {[%clk 0:00:23.4]} 53. Bxc5
{[%clk 0:00:06.1]} 53... bxc5 {[%clk 0:00:22.5]} 54. Be4 {[%clk 0:00:06.1]}
54... c4 {[%clk 0:00:21.5]} 55. Rb1 {[%clk 0:00:07.4]} 55... Bb6 {[%clk
0:00:21.7]} 56. Rd1 {[%clk 0:00:07.5]} 56... Bd4 {[%clk 0:00:15.7]} 57. Rb1
{[%clk 0:00:08.6]} 57... Rb8 {[%clk 0:00:17.2]} 58. Rd1 {[%clk 0:00:06.8]} 58...
Ke7 {[%clk 0:00:18.3]} 59. Rb1 {[%clk 0:00:07.5]} 59... Kf8 {[%clk 0:00:19.7]}
60. Rd1 {[%clk 0:00:06.7]} 60... Rd8 {[%clk 0:00:20.8]} 61. Rb1 {[%clk
0:00:05.6]} 61... Bb6 {[%clk 0:00:22.3]} 62. Kc3 {[%clk 0:00:06.5]} 62... Rd4
{[%clk 0:00:23.3]} 63. Rh1 {[%clk 0:00:06.1]} 63... Kg8 {[%clk 0:00:16.9]} 64.
Re1 {[%clk 0:00:06.3]} 64... Bd8 {[%clk 0:00:17.2]} 65. Bc2 {[%clk 0:00:04.1]}
65... Bc7 {[%clk 0:00:11.2]} 66. Re4 {[%clk 0:00:04.2]} 66... Rxe4 {[%clk
0:00:05.8]} 67. Bxe4 {[%clk 0:00:06.1]} 67... Bd8 {[%clk 0:00:05.2]} 68. Kxc4
{[%clk 0:00:07.6]} 68... Bxg5 {[%clk 0:00:06.5]} 69. b6 {[%clk 0:00:09]} 69...
Bd8 {[%clk 0:00:07.9]} 70. b7 {[%clk 0:00:10.3]} 70... Bc7 {[%clk 0:00:09.3]}
71. Kd5 {[%clk 0:00:10.9]} 71... Kf7 {[%clk 0:00:10.3]} 72. Kc6 {[%clk
0:00:12.3]} 72... Bb8 {[%clk 0:00:11.8]} 73. Kd7 {[%clk 0:00:13.6]} 73... Kf6
{[%clk 0:00:12.1]} 74. Kc8 {[%clk 0:00:15]} 74... Ba7 {[%clk 0:00:13.6]} 75.
b8=Q {[%clk 0:00:14.9]} 75... Bxb8 {[%clk 0:00:14.5]} 76. Kxb8 {[%clk
0:00:16.8]} 76... Kg5 {[%clk 0:00:15.7]} 77. Kc7 {[%clk 0:00:16.7]} 77... Kxh6
{[%clk 0:00:17.1]} 78. Kb6 {[%clk 0:00:15.3]} 78... Kg5 {[%clk 0:00:18.6]} 79.
Kxa5 {[%clk 0:00:16.8]} 79... h5 {[%clk 0:00:20.1]} 80. Bd3 {[%clk 0:00:16.2]}
80... h4 {[%clk 0:00:21.1]} 81. Bf1 {[%clk 0:00:17.4]} 81... e4 {[%clk
0:00:18.3]} 82. fxe4 {[%clk 0:00:16.4]} 82... Kg4 {[%clk 0:00:19.6]} 83. Kb6
{[%clk 0:00:14.5]} 83... h3 {[%clk 0:00:20.8]} 84. a5 {[%clk 0:00:07.8]} 84...
h2 {[%clk 0:00:20.6]} 85. Bg2 {[%clk 0:00:08.6]} 85... f3 {[%clk 0:00:22]} 86.
Bh1 {[%clk 0:00:03.4]} 86... f2 {[%clk 0:00:22.9]} 87. a6 {[%clk 0:00:05.3]}
87... f1=Q {[%clk 0:00:24]} 88. a7 {[%clk 0:00:06.9]} 88... Qxh1 {[%clk
0:00:16.5]} 89. a8=Q {[%clk 0:00:08]} 89... Qb1+ {[%clk 0:00:17.7]} 90. Kc7
{[%clk 0:00:07.8]} 90... h1=Q {[%clk 0:00:17.8]} 91. Qc8+ {[%clk 0:00:08.8]}
91... Kg3 {[%clk 0:00:19.1]} 0-1